bitfinex/quotes_SOLUSD_20241123
["timestamp","ask_amount","ask_price","bid_price","bid_amount"]
[1732357119801,5.23931912,257.84,257.75,5.23931912]
[1732357120000,15.457825,257.9,257.75,5.23931912]
[1732357120188,5.23931912,257.85,257.75,5.23931912]
[1732357122587,23.776884,257.84,257.76,16.4093]
[1732357124701,23.776884,257.82,257.76,16.4093]
[1732357125111,5.23931912,257.79,257.71,20.0]
[1732357125412,10.0,257.88,257.7,15.0987]
[1732357125413,5.23931912,257.77,257.7,15.0987]
[1732357125587,23.776884,257.76,257.7,15.0987]
[1732357126485,23.776884,257.76,257.64,19.86658009]
[1732357126686,23.776884,257.74,257.67,20.0]
[1732357127585,23.776884,257.74,257.66,5.23931912]
[1732357128891,5.23931912,257.73,257.65,20.0]
[1732357129098,23.776884,257.72,257.65,20.0]
[1732357131922,23.776884,257.7,257.64,15.0987]
[1732357132218,23.776884,257.7,257.62,5.23931912]
[1732357132442,23.776884,257.68,257.58,4.76788009]
[1732357132596,23.776884,257.68,257.58,10.00719921]
[1732357132801,5.23931912,257.67,257.58,4.76788009]
[1732357133003,5.23931912,257.7,257.6,5.23931912]
[1732357133214,5.23931912,257.68,257.6,5.23931912]
[1732357133602,23.776884,257.67,257.6,5.23931912]
[1732357134008,23.776884,257.67,257.58,24.76788009]
[1732357134223,23.776884,257.67,257.58,30.00719921]
[1732357134424,23.776884,257.67,257.58,10.00719921]
[1732357138300,15.9128,257.71,257.6,5.23931912]
[1732357138609,5.23931912,257.73,257.64,5.23931912]
[1732357139904,5.23931912,257.73,257.64,317.23931912]
[1732357140927,5.23931912,257.73,257.64,5.23931912]
[1732357141435,23.776884,257.7,257.62,5.23931912]
[1732357141819,5.23931912,257.69,257.6,10.00719921]
[1732357142127,23.776884,257.68,257.6,5.23931912]
[1732357142503,23.776884,257.66,257.58,25.23931912]
[1732357143112,23.776884,257.66,257.58,5.23931912]
[1732357146926,5.23931912,257.68,257.59,5.23931912]
[1732357150227,5.23931912,257.66,257.57,5.23931912]
[1732357150910,5.23931912,257.66,257.54,4.76788009]
[1732357150911,5.23931912,257.64,257.54,4.76788009]
[1732357151110,5.23931912,257.64,257.46,20.72121912]
[1732357151111,5.23931912,257.56,257.46,20.72121912]
[1732357151327,5.23931912,257.56,257.46,24.58321912]
[1732357151510,5.23931912,257.56,257.46,20.72121912]
[1732357152133,5.23931912,257.56,257.46,15.4819]
[1732357152317,5.23931912,257.5,257.41,5.23931912]
[1732357153835,5.23931912,257.5,257.42,20.0]
[1732357154018,5.23931912,257.5,257.42,332.0]
[1732357155048,15.475103,257.54,257.44,20.0]
[1732357155332,5.23931912,257.54,257.46,20.0]
[1732357155532,15.473802,257.55,257.47,5.23931912]
[1732357155930,21.49171912,257.56,257.47,5.23931912]
[1732357156131,21.49171912,257.56,257.48,20.0]
[1732357158824,16.2524,257.63,257.51,5.23931912]
[1732357159126,15.470665,257.61,257.51,5.23931912]
[1732357160222,5.23931912,257.6,257.51,5.23931912]
[1732357161221,5.23931912,257.58,257.49,5.23931912]
[1732357162130,5.23931912,257.58,257.48,20.0]
[1732357162721,5.23931912,257.56,257.47,5.23931912]
[1732357163842,5.23931912,257.56,257.49,5.23931912]
[1732357165862,6.6446,257.68,257.53,5.23931912]
[1732357166138,20.70990112,257.62,257.53,5.23931912]
[1732357167476,5.23931912,257.6,257.51,5.23931912]
[1732357168933,5.23931912,257.6,257.51,317.23931912]
[1732357170540,5.23931912,257.58,257.5,20.0]
[1732357171047,5.23931912,257.6,257.51,5.23931912]
[1732357171264,5.23931912,257.6,257.5,20.0]
[1732357171425,5.23931912,257.6,257.5,5.23931912]
[1732357173452,5.23931912,257.6,257.5,317.23931912]
[1732357174650,15.470582,257.62,257.5,317.23931912]
[1732357174840,5.23931912,257.61,257.5,317.23931912]
[1732357175043,5.23931912,257.61,257.51,20.0]
[1732357178851,5.23931912,257.61,257.52,5.23931912]
[1732357180648,5.23931912,257.59,257.49,20.0]
[1732357180963,23.776884,257.58,257.5,5.23931912]
[1732357182947,23.776884,257.6,257.5,5.23931912]
[1732357183252,23.776884,257.58,257.5,5.23931912]
[1732357183458,15.7896,257.61,257.5,5.23931912]
[1732357183759,5.23931912,257.59,257.5,5.23931912]
[1732357187357,23.776884,257.58,257.43,20.0]
[1732357187568,23.776884,257.58,257.5,20.0]
[1732357187860,5.23931912,257.59,257.49,5.23931912]
[1732357187861,5.23931912,257.57,257.49,5.23931912]
[1732357188940,5.23931912,257.55,257.42,20.0]
[1732357189141,5.23931912,257.51,257.43,5.23931912]
[1732357190440,5.23931912,257.51,257.44,20.0]
[1732357191261,5.23931912,257.51,257.39,20.0]
[1732357191468,5.23931912,257.51,257.42,5.23931912]
[1732357191760,5.23931912,257.51,257.43,20.0]
[1732357194647,15.0205,257.52,257.43,20.0]
[1732357194852,15.0205,257.52,257.46,5.23931912]
[1732357199650,15.0205,257.52,257.44,5.23931912]
[1732357199853,15.0205,257.52,257.45,20.0]
[1732357200473,23.776884,257.51,257.45,20.0]
[1732357200766,29.01620312,257.51,257.37,5.98418051]
[1732357200971,29.01620312,257.51,257.41,5.23931912]
[1732357202063,29.01620312,257.51,257.42,20.0]
[1732357202378,29.01620312,257.51,257.43,5.23931912]
[1732357203761,23.776884,257.51,257.43,5.23931912]
[1732357209154,23.776884,257.51,257.41,5.23931912]
[1732357209561,23.776884,257.49,257.41,5.23931912]
[1732357209878,23.776884,257.47,257.37,25.23931912]
[1732357212066,23.776884,257.47,257.39,5.23931912]
[1732357215268,23.776884,257.47,257.35,20.0]
[1732357215269,5.23931912,257.46,257.35,20.0]
[1732357215464,23.776884,257.45,257.37,20.0]
[1732357216183,23.776884,257.41,257.28,25.65921739]
[1732357216398,23.776884,257.41,257.32,5.23931912]
[1732357216679,23.776884,257.39,257.32,5.23931912]
[1732357217382,23.776884,257.39,257.33,20.0]
[1732357217586,23.776884,257.41,257.36,5.23931912]
[1732357217878,15.6867,257.42,257.38,5.23931912]
[1732357218090,23.776884,257.47,257.38,5.23931912]
[1732357218862,23.776884,257.47,257.4,5.23931912]
[1732357221374,15.6867,257.48,257.42,5.23931912]
[1732357222366,5.23931912,257.52,257.42,5.23931912]
[1732357223068,23.776884,257.51,257.42,5.23931912]
[1732357225686,23.776884,257.52,257.44,5.23931912]
[1732357225880,23.776884,257.53,257.44,5.23931912]
[1732357226469,23.776884,257.53,257.46,5.23931912]
[1732357228091,23.776884,257.53,257.44,5.23931912]
[1732357228673,23.776884,257.53,257.45,20.0]
[1732357230089,5.23931912,257.5,257.41,5.23931912]
[1732357230563,5.23931912,257.5,257.42,20.0]
[1732357231079,23.776884,257.49,257.42,20.0]
[1732357231883,23.776884,257.49,257.36,4.15653688]
[1732357232192,23.776884,257.49,257.4,5.23931912]
[1732357233184,23.776884,257.49,257.36,4.15653688]
[1732357233392,23.776884,257.49,257.39,5.23931912]
[1732357233692,23.776884,257.49,257.41,5.23931912]
[1732357235486,29.01620312,257.51,257.41,5.23931912]
[1732357238486,5.23931912,257.49,257.41,5.23931912]
[1732357239078,23.776884,257.48,257.41,5.23931912]
[1732357239593,23.776884,257.48,257.39,5.23931912]
[1732357247088,23.776884,257.46,257.39,20.0]
[1732357247407,23.776884,257.46,257.37,5.23931912]
[1732357248190,5.23931912,257.45,257.33,20.0]
[1732357248402,23.776884,257.44,257.36,20.0]
[1732357249300,23.776884,257.42,257.34,5.23931912]
[1732357251002,23.776884,257.42,257.28,20.0]
[1732357251003,23.776884,257.4,257.28,20.0]
[1732357251299,23.776884,257.4,257.33,20.0]
[1732357252517,23.776884,257.4,257.34,5.23931912]
[1732357255907,23.776884,257.41,257.34,5.23931912]
[1732357257684,16.0978,257.45,257.37,5.23931912]
[1732357259113,23.776884,257.44,257.37,5.23931912]
[1732357260421,16.0978,257.45,257.39,5.23931912]
[1732357260711,16.0978,257.45,257.28,20.58287257]
[1732357260712,16.0978,257.45,257.41,5.23931912]
[1732357261093,16.0978,257.45,257.39,5.23931912]
[1732357263114,23.776884,257.44,257.39,5.23931912]
[1732357265003,23.776884,257.44,257.36,5.23931912]
[1732357270118,23.776884,257.44,257.38,5.23931912]
[1732357270704,23.776884,257.44,257.4,5.23931912]
[1732357270897,16.279,257.51,257.42,5.23931912]
[1732357271094,16.279,257.51,257.44,5.23931912]
[1732357272549,6.0954,257.54,257.44,5.23931912]
[1732357272727,16.279,257.57,257.4,0.58253174]
[1732357272728,21.51831912,257.57,257.48,5.23931912]
[1732357274407,5.23931912,257.55,257.46,5.23931912]
[1732357275117,23.776884,257.51,257.45,20.0]
[1732357275898,23.776884,257.51,257.44,5.23931912]
[1732357276409,23.776884,257.51,257.43,20.0]
[1732357278116,22.6176487,257.51,257.43,20.0]
[1732357278315,22.6176487,257.51,257.44,5.23931912]
[1732357279728,16.279,257.57,257.4,20.95727648]
[1732357280053,5.23931912,257.53,257.44,5.23931912]
[1732357280333,23.776884,257.51,257.44,5.23931912]
[1732357283019,23.776884,257.51,257.45,3.864]
[1732357283219,23.776884,257.51,257.44,5.23931912]
[1732357288430,5.23931912,257.55,257.44,5.23931912]
[1732357290217,16.279,257.57,257.44,5.23931912]
[1732357290436,5.23931912,257.55,257.44,5.23931912]
[1732357291434,5.23931912,257.55,257.46,5.23931912]
[1732357291738,23.776884,257.54,257.46,5.23931912]
[1732357291923,23.776884,257.55,257.46,5.23931912]
[1732357292125,5.23931912,257.54,257.44,5.23931912]
[1732357293227,23.776884,257.53,257.36,20.58250061]
[1732357293545,23.776884,257.53,257.44,20.0]
[1732357296223,23.776884,257.53,257.44,332.0]
[1732357296942,23.776884,257.53,257.44,20.0]
[1732357297348,5.23931912,257.55,257.45,5.23931912]
[1732357298949,5.23931912,257.53,257.43,5.23931912]
[1732357299146,5.23931912,257.53,257.44,20.0]
[1732357303937,5.23931912,257.55,257.44,20.0]
[1732357304745,23.776884,257.58,257.44,20.0]
[1732357304941,5.23931912,257.55,257.44,20.0]
[1732357305655,5.23931912,257.55,257.45,5.23931912]
[1732357307157,23.776884,257.54,257.43,25.23931912]
[1732357310338,5.23931912,257.53,257.43,20.0]
[1732357310536,5.23931912,257.53,257.43,25.23931912]
[1732357310746,23.776884,257.52,257.43,25.23931912]
[1732357315757,5.23931912,257.51,257.43,20.0]
[1732357316159,5.23931912,257.49,257.42,6.5433]
[1732357316366,5.23931912,257.5,257.4,20.0]
[1732357317860,5.23931912,257.48,257.36,318.5567]
[1732357318062,5.23931912,257.48,257.37,5.23931912]
[1732357319165,5.23931912,257.48,257.38,20.0]
[1732357319337,10.0,257.58,257.39,5.23931912]
[1732357319541,5.23931912,257.49,257.39,5.23931912]
[1732357320139,5.23931912,257.49,257.38,20.0]
[1732357320345,23.776884,257.48,257.39,5.23931912]
[1732357321062,23.776884,257.46,257.37,25.23931912]
[1732357321267,5.23931912,257.45,257.37,25.23931912]
[1732357321450,23.776884,257.44,257.37,5.23931912]
[1732357321645,23.776884,257.44,257.35,16.1986]
[1732357321646,5.23931912,257.43,257.35,16.1986]
[1732357322260,23.776884,257.42,257.35,16.1986]
[1732357322772,23.776884,257.42,257.34,20.0]
[1732357322947,5.23931912,257.41,257.34,20.0]
[1732357323267,23.776884,257.4,257.32,5.98418051]
[1732357323570,23.776884,257.38,257.3,5.23931912]
[1732357323867,23.776884,257.38,257.28,9.84052306]
[1732357324168,5.23931912,257.33,257.25,5.98418051]
[1732357324470,5.23931912,257.33,257.24,5.23931912]
[1732357324645,23.776884,257.32,257.24,5.23931912]
[1732357324845,23.776884,257.32,257.23,22.41368051]
[1732357325080,23.776884,257.32,257.23,27.65299963]
[1732357325375,23.776884,257.32,257.23,5.23931912]
[1732357325668,16.2626,257.23,257.12,3.17392306]
[1732357325967,23.776884,257.12,256.99,5.23931912]
[1732357326266,5.23931912,257.15,257.04,5.23931912]
[1732357326440,23.776884,257.14,257.04,5.23931912]
[1732357326646,5.23931912,257.13,257.04,5.23931912]
[1732357326957,5.23931912,257.13,257.04,22.12477015]
[1732357327148,23.776884,257.12,257.01,6.4618]
[1732357327343,23.776884,257.12,257.02,5.23931912]
[1732357327552,23.776884,257.08,257.01,6.4618]
[1732357327744,23.776884,257.08,256.99,16.4295]
[1732357328352,29.01620312,257.08,256.99,16.4295]
[1732357328972,5.30988555,257.22,257.0,5.23931912]
[1732357328973,23.776884,257.21,257.0,5.23931912]
[1732357329271,5.23931912,257.1,257.0,5.23931912]
[1732357329470,5.23931912,257.08,256.99,16.4295]
[1732357329772,5.23931912,257.08,257.0,5.23931912]
[1732357330369,5.23931912,257.1,257.0,5.23931912]
[1732357330677,5.23931912,257.1,257.02,5.23931912]
[1732357331951,23.776884,257.22,256.99,16.4295]
[1732357332264,23.776884,257.13,257.05,5.23931912]
[1732357332466,23.776884,257.13,257.03,5.23931912]
[1732357332658,5.23931912,257.1,257.0,20.0]
[1732357332866,5.23931912,257.1,257.02,20.0]
[1732357334061,5.23931912,257.12,257.03,5.23931912]
[1732357334268,23.776884,257.11,257.03,5.23931912]
[1732357334866,5.23931912,257.1,257.01,5.23931912]
[1732357335062,23.776884,257.09,257.0,25.23931912]
[1732357335255,23.776884,257.09,257.0,5.23931912]
[1732357337255,5.23931912,257.1,256.99,16.4295]
[1732357337256,23.776884,257.1,257.02,5.23931912]
[1732357339265,23.776884,257.11,257.02,5.23931912]
[1732357340961,23.776884,257.09,257.02,5.23931912]
[1732357341280,5.23931912,257.08,257.01,5.23931912]
[1732357341576,5.23931912,257.04,256.95,20.0]
[1732357341781,5.23931912,257.04,256.95,25.23931912]
[1732357341955,5.23931912,257.04,256.95,5.23931912]
[1732357342589,5.23931912,257.06,256.97,5.23931912]
[1732357342999,23.776884,257.05,256.97,5.23931912]
[1732357343362,23.776884,257.07,256.97,5.23931912]
[1732357343564,23.776884,257.08,256.99,5.23931912]
[1732357343782,5.23931912,257.09,256.94,6.4618]
[1732357344088,15.001622,257.12,257.05,5.23931912]
[1732357345284,15.001622,257.12,257.01,5.23931912]
[1732357345285,5.23931912,257.09,257.01,5.23931912]
[1732357348680,5.23931912,257.11,257.01,5.23931912]
[1732357349087,5.23931912,257.09,257.01,5.23931912]
[1732357349379,5.23931912,257.07,256.99,5.23931912]
[1732357349581,5.23931912,257.07,257.0,20.0]
[1732357349767,5.23931912,257.09,257.01,5.23931912]
[1732357351269,5.23931912,257.08,257.0,25.23931912]
[1732357352372,5.18285652,257.08,257.0,25.23931912]
[1732357353892,5.23931912,257.1,257.0,25.23931912]
[1732357354097,23.776884,257.09,257.0,25.23931912]
[1732357354271,23.776884,257.09,256.96,20.0]
[1732357354596,5.23931912,257.06,256.99,20.0]
[1732357355787,23.776884,257.07,256.99,20.0]
[1732357359885,23.776884,257.07,256.98,5.23931912]
[1732357359886,15.001622,257.12,257.02,5.23931912]
[1732357360079,23.776884,257.1,257.02,5.23931912]
[1732357360582,5.23931912,257.11,257.02,5.23931912]
[1732357363698,5.23931912,257.09,257.01,20.0]
[1732357363996,5.23931912,257.07,256.98,5.23931912]
[1732357364196,5.23931912,257.07,256.99,20.0]
[1732357365474,23.776884,257.13,257.0,5.23931912]
[1732357365681,5.23931912,257.1,257.01,20.0]
[1732357366501,5.0,257.17,257.06,5.23931912]
[1732357366701,10.23931912,257.17,257.08,5.23931912]
[1732357368486,5.23931912,257.13,257.05,20.0]
[1732357368898,5.23931912,257.13,257.05,25.23931912]
[1732357369203,5.23931912,257.13,257.05,20.0]
[1732357371008,23.776884,257.12,257.05,20.0]
[1732357371706,5.0,257.17,257.07,20.0]
[1732357371909,5.0,257.17,257.09,5.23931912]
[1732357372102,5.0,257.17,257.1,20.0]
[1732357377701,29.01620312,257.16,257.04,6.1564]
[1732357377907,5.23931912,257.13,257.05,5.23931912]
[1732357378412,5.23931912,257.15,257.05,5.23931912]
[1732357378707,23.776884,257.14,257.05,5.23931912]
[1732357379004,23.776884,257.14,257.06,20.0]
[1732357379692,23.776884,257.14,257.07,5.23931912]
[1732357380086,5.0,257.17,257.07,5.23931912]
[1732357380297,5.0,257.17,257.11,5.23931912]
[1732357380788,5.0,257.17,257.13,5.23931912]
[1732357381014,5.0,257.17,257.06,20.0]
[1732357381312,10.23931912,257.17,257.09,20.0]
[1732357381887,10.23931912,257.17,257.05,20.0]
[1732357382092,10.23931912,257.17,257.09,20.0]
[1732357383809,5.0,257.17,257.1,5.23931912]
[1732357384113,5.0,257.17,257.11,20.0]
[1732357384297,5.0,257.17,257.14,5.23931912]
[1732357384618,5.0,257.17,257.14,28.52341912]
[1732357386194,5.0,257.17,257.14,23.2841]
[1732357388110,10.23931912,257.17,257.08,25.23931912]
[1732357388914,5.0,257.17,257.1,5.23931912]
[1732357389118,5.0,257.17,257.09,5.23931912]
[1732357389304,5.0,257.17,257.1,20.0]
[1732357389697,5.0,257.17,257.11,5.23931912]
[1732357390020,5.0,257.17,257.12,20.0]
[1732357391294,10.23931912,257.17,257.08,20.0]
[1732357392427,5.23931912,257.15,257.08,20.0]
[1732357393722,5.23931912,257.13,257.08,20.0]
[1732357394023,5.23931912,257.11,257.06,6.4316]
[1732357394219,5.23931912,257.11,257.03,5.9038066]
[1732357396831,5.23931912,257.11,257.04,20.0]
[1732357398123,5.23931912,257.09,257.04,20.0]
[1732357398428,5.23931912,257.11,257.04,20.0]
[1732357399517,5.26306395,257.11,257.04,20.0]
[1732357400417,5.26306395,257.11,257.02,20.0]
[1732357402607,5.26306395,257.13,257.02,20.0]
[1732357403228,5.0,257.17,257.02,25.9038066]
[1732357403429,5.0,257.17,257.04,20.0]
[1732357404917,5.0,257.17,257.04,25.9038066]
[1732357405231,10.26306395,257.17,257.04,25.9038066]
[1732357408732,5.0,257.17,257.04,25.9038066]
[1732357408938,5.0,257.17,257.06,20.0]
[1732357410016,5.26306395,257.15,257.01,16.135]
[1732357410220,5.0,257.17,257.01,16.135]
[1732357410424,5.26306395,257.15,257.01,22.0388066]
[1732357411117,5.26306395,257.15,257.02,20.0]
[1732357413640,5.0,257.17,257.03,23.776884]
[1732357413817,5.0,257.17,257.04,20.0]
[1732357414014,10.26306395,257.17,257.04,20.0]
[1732357414738,10.26098919,257.17,257.09,20.0]
[1732357415039,5.0,257.17,257.1,5.26098919]
[1732357421140,10.26098919,257.17,257.09,20.0]
[1732357421349,10.26098919,257.17,257.08,20.0]
[1732357422352,5.0,257.17,257.08,20.0]
[1732357422672,5.0,257.17,257.11,5.26098919]
[1732357423148,5.0,257.17,257.1,20.0]
[1732357425050,5.26098919,257.15,257.04,5.9038066]
[1732357425344,5.26098919,257.15,257.05,5.26098919]
[1732357426245,5.26098919,257.15,257.06,20.0]
[1732357427022,5.26098919,257.15,257.07,5.26098919]
[1732357427834,5.26098919,257.15,257.02,20.0]
[1732357428039,5.26098919,257.13,257.05,20.0]
[1732357428344,21.47108919,257.15,257.06,5.26098919]
[1732357431229,5.26098919,257.13,257.05,20.0]
[1732357432953,5.26098919,257.11,257.05,20.0]
[1732357433428,5.26098919,257.11,257.04,5.26098919]
[1732357433632,5.26098919,257.11,257.03,20.0]
[1732357434528,5.26098919,257.08,256.98,5.9038066]
[1732357434735,5.26098919,257.02,256.94,5.26098919]
[1732357436139,5.26098919,257.02,256.95,20.0]
[1732357440348,23.776884,257.11,257.0,5.26098919]
[1732357440554,5.26098919,257.09,257.0,5.26098919]
[1732357441144,5.26098919,257.09,257.01,20.0]
[1732357441741,5.26098919,257.09,256.92,20.58350949]
[1732357442051,5.26098919,257.09,257.01,5.26098919]
[1732357442735,5.0,257.17,257.04,20.0]
[1732357443041,5.26098919,257.14,257.05,5.26098919]
[1732357443936,23.776884,257.14,257.07,5.26098919]
[1732357444155,5.26098919,257.16,257.07,5.26098919]
[1732357444337,5.0,257.17,257.07,5.26098919]
[1732357444537,29.03787319,257.16,257.07,5.26098919]
[1732357446251,5.26098919,257.16,257.07,5.26098919]
[1732357447639,23.776884,257.16,257.07,5.26098919]
[1732357449664,29.03787319,257.16,257.07,5.26098919]
[1732357449967,5.0,257.17,257.09,5.26098919]
[1732357452077,10.26098919,257.17,257.09,5.26098919]
[1732357453367,10.26098919,257.17,257.08,20.0]
[1732357454749,5.26098919,257.13,257.05,20.0]
[1732357455153,5.26098919,257.15,257.06,5.26098919]
[1732357455571,5.26098919,257.15,257.07,20.0]
[1732357457176,10.26098919,257.17,257.08,5.26098919]
[1732357458171,10.26098919,257.17,257.09,20.0]
[1732357459870,5.26098919,257.13,257.07,22.115]
[1732357460067,5.26098919,257.13,257.08,20.0]
[1732357460351,5.26098919,257.13,257.07,22.115]
[1732357462076,5.26098919,257.15,257.07,22.115]
[1732357462684,5.0,257.17,257.09,5.26098919]
[1732357464585,5.26098919,257.16,257.08,20.0]
[1732357466979,5.0,257.17,257.09,5.26098919]
[1732357467179,5.0,257.17,257.08,20.0]
[1732357467180,10.26098919,257.17,257.08,20.0]
[1732357467362,5.26098919,257.15,257.08,20.0]
[1732357468275,5.0,257.17,257.08,20.0]
[1732357468473,5.26098919,257.15,257.08,20.0]
[1732357469884,5.0,257.17,257.08,25.26098919]
[1732357470085,5.0,257.17,257.1,5.26098919]
[1732357470260,5.0,257.17,257.12,5.26098919]
[1732357471570,5.0,257.17,257.1,5.26098919]
[1732357472566,5.26098919,257.15,257.08,20.0]
[1732357473389,5.26098919,257.12,256.98,6.0671207]
[1732357473560,5.26098919,257.12,257.04,5.26098919]
[1732357474490,5.26098919,257.12,257.03,5.26098919]
[1732357475471,5.26098919,257.1,257.01,5.26098919]
[1732357475671,5.26098919,257.1,257.02,20.0]
[1732357479092,5.26098919,257.08,257.02,20.0]
[1732357479892,5.26098919,257.1,257.02,20.0]
[1732357484906,5.26098919,257.1,256.95,20.58347177]
[1732357485093,5.26098919,257.1,257.03,20.0]
[1732357486677,1.04176388,257.08,257.02,5.26098919]
[1732357486892,1.04176388,257.08,257.03,20.0]
[1732357489495,1.04176388,257.08,256.96,20.0]
[1732357489694,1.04176388,257.08,256.97,0.58346398]
[1732357490279,1.04176388,257.08,256.99,20.0]
[1732357490484,1.04176388,257.08,256.99,20.58341694]
[1732357491003,0.93758468,257.08,256.99,20.58341694]
[1732357492282,0.93758468,257.08,257.0,23.776884]
[1732357492506,0.93758468,257.08,257.01,20.0]
[1732357493716,0.93758468,257.08,257.02,23.776884]
[1732357494014,0.93758468,257.08,257.07,20.0]
[1732357496123,0.93758468,257.08,257.04,20.0]
[1732357498099,0.93758468,257.08,257.05,23.776884]
[1732357498304,0.93758468,257.08,257.06,20.0]
[1732357500811,0.93758468,257.08,257.04,20.0]
[1732357502899,0.93758468,257.08,257.02,20.0]
[1732357503105,0.93758468,257.08,256.99,23.776884]
[1732357503306,6.20102564,257.08,256.99,23.776884]
[1732357503528,0.93758468,257.08,256.99,23.776884]
[1732357504413,0.93758468,257.08,257.01,23.776884]
[1732357504617,0.93758468,257.08,257.06,5.26222685]
[1732357507527,0.93758468,257.08,257.07,20.0]
[1732357511408,0.93758468,257.08,257.07,20.58327979]
[1732357511712,0.93758468,257.08,257.07,59.53346379]
[1732357512634,0.93758468,257.08,257.07,63.39746379]
[1732357513927,0.93758468,257.08,257.07,73.39746379]
[1732357514118,0.93758468,257.08,257.07,74.91004817]
[1732357514316,0.93758468,257.08,257.07,80.99128279]
[1732357514644,0.93758468,257.08,257.07,84.91004817]
[1732357514930,0.93758468,257.08,257.07,90.408003]
[1732357515130,0.93758468,257.08,257.07,94.272003]
[1732357515529,0.93758468,257.08,257.07,88.19076838]
[1732357516641,0.93758468,257.08,257.07,78.19076838]
[1732357516808,0.93758468,257.08,257.07,84.272003]
[1732357517129,0.93758468,257.08,257.07,94.272003]
[1732357517324,0.93758468,257.08,257.07,84.272003]
[1732357517629,0.93758468,257.08,257.07,88.19076838]
[1732357517928,0.93758468,257.08,257.07,93.74023719]
[1732357518319,0.93758468,257.08,257.07,83.74023719]
[1732357519038,0.93758468,257.08,257.07,40.54988438]
[1732357520407,0.93758468,257.08,257.07,58.950184]
[1732357524032,0.93758468,257.08,257.07,43.776884]
[1732357524635,0.93758468,257.08,257.03,6.2085]
[1732357524942,0.93758468,257.08,257.0,5.37658438]
[1732357525321,0.93758468,257.08,257.01,10.0]
[1732357525517,0.93758468,257.08,257.01,0.58334458]
[1732357526738,0.93758468,257.08,257.03,20.0]
[1732357527249,0.93758468,257.08,257.05,20.0]
[1732357527724,0.93758468,257.08,257.03,20.0]
[1732357528242,0.93758468,257.08,257.03,20.58334831]
[1732357530619,0.93758468,257.08,257.05,20.0]
[1732357530836,0.93758468,257.08,257.07,20.0]
[1732357531845,0.93758468,257.08,257.03,20.0]
[1732357532226,0.93758468,257.08,257.04,0.58333417]
[1732357533026,0.93758468,257.08,257.06,20.0]
[1732357533627,0.93758468,257.08,257.01,3.864]
[1732357533628,0.93758468,257.08,257.02,23.776884]
[1732357534245,0.93758468,257.08,257.05,20.0]
[1732357534849,0.93758468,257.08,257.07,25.26175934]
[1732357546944,0.93758468,257.08,257.07,5.26175934]
[1732357547146,0.93758468,257.08,257.07,25.26175934]
[1732357551126,0.93758468,257.08,257.07,20.0]
[1732357551331,0.93758468,257.08,257.07,25.26175934]
[1732357555739,0.93758468,257.08,257.04,20.58327827]
[1732357556056,0.93758468,257.08,257.07,25.26175934]
[1732357556638,0.93758468,257.08,257.07,41.86615934]
[1732357557856,0.93758468,257.08,257.07,76.22619649]
[1732357558063,5.0,257.17,257.09,10.0]
[1732357558247,5.0,257.17,257.16,25.26175934]
[1732357562169,5.0,257.17,257.14,20.0]
[1732357562465,5.0,257.17,257.16,25.26175934]
[1732357573454,5.0,257.17,257.16,29.12575934]
[1732357576266,5.0,257.17,257.16,45.30705934]
[1732357576467,5.0,257.17,257.16,55.30705934]
[1732357576668,5.0,257.17,257.16,51.44305934]
[1732357577172,5.0,257.17,257.16,57.02547706]
[1732357577358,5.0,257.17,257.16,60.89147706]
[1732357577750,5.0,257.17,257.16,67.02547706]
[1732357578165,16.4057,257.33,257.21,20.0]
[1732357578383,16.4057,257.33,257.27,20.0]
[1732357578963,16.4057,257.33,257.17,23.776884]
[1732357579160,16.4057,257.33,257.25,5.26175934]
[1732357579482,21.66745934,257.33,257.25,5.26175934]
[1732357580177,21.66745934,257.33,257.24,20.0]
[1732357580382,5.26175934,257.31,257.23,5.26175934]
[1732357582802,16.4057,257.33,257.23,5.26175934]
[1732357582987,29.03864334,257.32,257.17,20.0]
[1732357583163,5.26175934,257.3,257.17,20.0]
[1732357583485,5.26175934,257.3,257.21,5.26175934]
[1732357584674,5.26175934,257.28,257.2,20.0]
[1732357585793,5.26175934,257.28,257.19,5.26175934]
[1732357585968,5.26175934,257.26,257.18,20.0]